[Event "WYCC 2018 O14"]
[Site "Halkidiki"]
[Date "2018.10.23"]
[Round "5"]
[White "Pogosyan, Stefan"]
[Black "Cardoso Cardoso, Jose Gabriel"]
[Result "0-1"]
[ECO "D27"]
[WhiteElo "2373"]
[BlackElo "2313"]
[Annotator "NA"]
[PlyCount "116"]
[EventDate "2018.10.20"]
[EventType "swiss"]
[EventCountry "GRE"]
[SourceTitle "playchess.com"]
[Source "ChessBase"]
[SourceQuality "1"]
[TimeControl "40/5400+30:1800+30"]

1. Nf3 {[%emt 0:00:00]} d5 {[%emt 0:00:00]} 2. d4 {[%emt 0:00:43]} Nf6 {[%emt 0:00:22]} 3. c4 {[%emt 0:00:07]} dxc4 {[%emt 0:00:08]} 4. e3 {[%emt 0:00:05]} e6 {[%emt 0:00:15]} 5. Bxc4 {[%emt 0:00:08]} c5 {[%emt 0:00:08]} 6. O-O {[%emt 0:00:20]} a6 {[%emt 0:00:05]} 7. dxc5 {[%emt 0:03:49]} Qxd1 {[%emt 0:00:13]} 8. Rxd1 {[%emt 0:00:17]} Bxc5 {[%emt 0:00:07]} 9. b3 {[%emt 0:01:27]} Nbd7 {[%emt 0:07:34]} 10. Bb2 {[%emt 0:00:27]} Ke7 {[%emt 0:04:38] D27: Queen's Gambit Accepted: Classical main line: 7 e4!? and 7 a4} (10... O-O 11. Nbd2 b5 12. Be2 Bb7 13. Ne1 Rfc8 14. Kf1 Kf8 15. Bf3 Bxf3 16. Ndxf3 Be7 17. Rac1 Nd5 18. e4 N5f6 19. Ng1 Rxc1 20. Bxc1 Rd8 {½-½ (58) Beliavsky,A (2628)-Navara,D (2697) Legnica 2013}) 11. Nbd2 {[%emt 0:11:33]} b5 {[%emt 0:30:21]} 12. Bd3 $146 {[%emt 0:06:33]} ({Predecessor:} 12. Be2 Bb7 13. Ne5 Nxe5 14. Bxe5 Rhd8 15. Bf3 Bxf3 16. Nxf3 Rxd1+ 17. Rxd1 {½-½ (17) Zarnicki,P (2515)-Ricardi,P (2555) Buenos Aires 1998}) 12... Bb7 {[%emt 0:01:31]} 13. a4 {[%emt 0:01:06]} bxa4 {[%emt 0:10:07]} 14. bxa4 {[%emt 0:09:24]} a5 {[%emt 0:06:41]} 15. Bc3 {[%emt 0:05:06]} Rhc8 {[%emt 0:05:02]} 16. Rdb1 {[%emt 0:03:37]} Ba6 {[%emt 0:05:06]} 17. Bxa6 {[%emt 0:01:43]} Rxa6 {[%emt 0:00:02]} 18. Rb5 {[%emt 0:02:27]} Bb6 {[%emt 0:06:42]} 19. Rc1 {[%emt 0:10:51]} Ke8 {[%emt 0:00:48]} 20. Kf1 {[%emt 0:14:53]} Nd5 {[%emt 0:09:45]} 21. Ne4 {[%emt 0:03:50]} Bd8 {[%emt 0:00:37]} 22. Bb2 {[%emt 0:00:40]} Rxc1+ {[%emt 0:01:01]} 23. Bxc1 {[%emt 0:00:01]} f5 {[%emt 0:00:56]} 24. Nc5 {[%emt 0:01:52]} Nxc5 {[%emt 0:05:21]} 25. Rxc5 {[%emt 0:00:05]} Be7 {[%emt 0:01:15]} 26. Rc4 {[%emt 0:02:50]} Rb6 {[%emt 0:01:10]} 27. Bd2 {[%emt 0:00:28]} Bb4 {[%emt 0:00:45]} 28. Ke2 {[%emt 0:03:05]} Bxd2 {[%emt 0:00:26]} 29. Nxd2 {[%emt 0:00:23]} Rb2 {[%emt 0:00:26]} 30. Rc5 {[%emt 0:09:39]} Nb6 {[%emt 0:00:15]} 31. Kd1 {[%emt 0:06:08]} Ra2 {[%emt 0:01:06]} 32. Rc6 {[%emt 0:00:26]} Nxa4 {[%emt 0:00:31]} 33. Rxe6+ {[%emt 0:00:29]} Kd7 {[%emt 0:00:05]} 34. Ra6 {[%emt 0:01:15]} Nc3+ {[%emt 0:01:51]} 35. Kc1 {[%emt 0:00:11]} a4 {[%emt 0:00:31]} 36. Nb1 {[%emt 0:01:09]} Nb5 {[%emt 0:01:11]} 37. Ra5 {[%emt 0:00:26]} Nd6 {[%emt 0:00:36]} 38. g3 {[%emt 0:00:52]} Rxf2 {[%emt 0:00:17]} 39. Rxa4 {[%emt 0:00:14]} Ke6 {[%emt 0:00:41]} 40. Rh4 {[%emt 0:00:00]} h6 {[%emt 0:00:00]} 41. Nc3 {[%emt 0:01:05]} Nf7 42. e4 {[%emt 0:05:38]} g5 {[%emt 0:05:48]} 43. exf5+ {[%emt 0:04:49]} Kxf5 {[%emt 0:00:10]} 44. Re4 {[%emt 0:04:06]} Ne5 {[%emt 0:02:59]} 45. Re2 {[%emt 0:04:08]} Rxe2 {[%emt 0:01:39]} 46. Nxe2 {[%emt 0:00:34]} Ke4 {[%emt 0:00:30]} 47. Kd1 {[%emt 0:04:21]} Ke3 {[%emt 0:00:58]} 48. h4 {[%emt 0:06:07]} g4 {[%emt 0:00:24]} 49. Ke1 {[%emt 0:00:04]} Nf3+ {[%emt 0:02:06]} 50. Kf1 {[%emt 0:00:26]} Nd2+ {[%emt 0:00:13]} 51. Ke1 {[%emt 0:00:10]} Ne4 {[%emt 0:00:06]} 52. Nf4 {[%emt 0:03:40]} Nxg3 {[%emt 0:01:10]} 53. Ng6 Nf5 54. h5 {[%emt 0:01:13]} Kf3 {[%emt 0:01:01]} 55. Kf1 {[%emt 0:00:58]} Kg3 {[%emt 0:00:10]} 56. Kg1 {[%emt 0:00:16]} Nh4 {[%emt 0:00:49]} 57. Ne7 {[%emt 0:01:18]} Kf4 $19 {[%emt 0:00:23]} 58. Kh2 {[%emt 0:00:36]} Nf5 {[%emt 0:00:20]} 0-1

[Event "WYCC 2018 O14"]
[Site "Halkidiki"]
[Date "2018.10.23"]
[Round "5"]
[White "Stoyanov, Tsvetan"]
[Black "Gombocz, Ferenc Jr."]
[Result "1-0"]
[ECO "C24"]
[WhiteElo "2340"]
[BlackElo "2271"]
[Annotator "ChessBase"]
[PlyCount "159"]
[EventDate "2018.10.20"]
[EventType "swiss"]
[EventCountry "GRE"]
[SourceTitle "playchess.com"]
[Source "ChessBase"]
[SourceQuality "1"]
[TimeControl "40/5400+30:1800+30"]

1. e4 {[%emt 0:00:00]} e5 {[%emt 0:00:00]} 2. Bc4 {[%emt 0:00:00]} Nf6 {[%emt 0:00:34]} 3. d3 {[%emt 0:00:00]} c6 {[%emt 0:00:31]} 4. Nf3 {[%emt 0:00:04]} d5 {[%emt 0:00:21]} 5. Bb3 {[%emt 0:00:05]} Bb4+ {[%emt 0:02:24]} 6. Bd2 {[%emt 0:00:13]} Bxd2+ {[%emt 0:00:37]} 7. Nbxd2 {[%emt 0:00:06]} Qd6 {[%emt 0:01:04]} 8. O-O {[%emt 0:05:08]} O-O {[%emt 0:03:05]} 9. Re1 {[%emt 0:12:47]} Re8 {[%emt 0:04:52]} 10. d4 {[%emt 0:03:46]} Bg4 {[%emt 0:44:23]} 11. dxe5 {[%emt 0:13:08]} Rxe5 {[%emt 0:00:15]} 12. Nc4 {[%emt 0:02:46]} Bxf3 {[%emt 0:00:42]} 13. Nxd6 {[%emt 0:12:58]} Bxd1 {[%emt 0:00:24]} 14. Raxd1 {[%emt 0:00:02]} Re6 {[%emt 0:05:18]} 15. Nxb7 {[%emt 0:02:56]} Rxe4 {[%emt 0:05:13]} 16. Rxe4 {[%emt 0:00:42]} Nxe4 {[%emt 0:00:11]} 17. Ba4 {[%emt 0:13:58]} a5 {[%emt 0:01:52]} 18. c4 {[%emt 0:14:27]} Nf6 {[%emt 0:05:03]} 19. Rc1 {[%emt 0:03:20]} Ra7 {[%emt 0:07:27]} 20. Nd8 {[%emt 0:02:30]} Rc7 {[%emt 0:00:54]} 21. cxd5 {[%emt 0:02:53]} Nxd5 {[%emt 0:00:47]} 22. Nxc6 {[%emt 0:07:50]} Kf8 {[%emt 0:02:31]} 23. Rd1 {[%emt 0:01:03]} Nxc6 {[%emt 0:00:23]} 24. Rxd5 {[%emt 0:00:02]} Nb4 {[%emt 0:00:16]} 25. Rd1 {[%emt 0:00:39]} Nxa2 {[%emt 0:01:19]} 26. Kf1 {[%emt 0:00:00]} Ke7 {[%emt 0:01:03]} 27. Rd5 {[%emt 0:00:37]} Rc1+ {[%emt 0:03:28]} 28. Ke2 {[%emt 0:00:17]} Rb1 {[%emt 0:00:17]} 29. Rb5 {[%emt 0:00:53]} Kd6 {[%emt 0:04:16]} 30. Kf3 {[%emt 0:00:58]} g6 {[%emt 0:04:02]} 31. Bc2 {[%emt 0:00:36]} Rc1 {[%emt 0:00:22]} 32. Bb3 {[%emt 0:00:04]} Nb4 {[%emt 0:00:19]} 33. Rxa5 {[%emt 0:00:44]} Nc6 {[%emt 0:01:13]} 34. Ra6 {[%emt 0:00:21]} Ke7 {[%emt 0:00:24]} 35. Bd5 {[%emt 0:00:22]} Ne5+ {[%emt 0:00:48]} 36. Ke4 {[%emt 0:00:38]} Ng4 {[%emt 0:00:18]} 37. Ra7+ {[%emt 0:00:20]} Kd6 {[%emt 0:00:13]} 38. Bxf7 {[%emt 0:00:17]} Nxf2+ {[%emt 0:00:17]} 39. Kf3 {[%emt 0:00:46]} Nd3 {[%emt 0:00:30]} 40. Bg8 {[%emt 0:00:00]} Ne5+ {[%emt 0:00:00]} 41. Kg3 {[%emt 0:08:11]} h6 {[%emt 0:07:00]} 42. Rh7 {[%emt 0:03:09]} Rc8 {[%emt 0:08:18]} 43. Ba2 {[%emt 0:01:02]} Rb8 {[%emt 0:02:18]} 44. b3 {[%emt 0:06:20]} Ra8 {[%emt 0:05:21]} 45. Bb1 {[%emt 0:00:02]} Rb8 {[%emt 0:00:07]} 46. Bc2 {[%emt 0:00:43]} Rc8 {[%emt 0:01:18]} 47. Be4 {[%emt 0:02:37]} Rc3+ {[%emt 0:01:15]} 48. Kf4 {[%emt 0:02:41]} h5 {[%emt 0:07:39]} 49. Rh6 {[%emt 0:01:40]} Rxb3 {[%emt 0:00:51]} 50. Bxg6 {[%emt 0:00:03]} Nxg6+ {[%emt 0:01:43]} 51. Rxg6+ {[%emt 0:00:13]} Ke7 {[%emt 0:00:05]} 52. Kg5 {[%emt 0:00:18]} Rb5+ {[%emt 0:00:15]} 53. Kh4 {[%emt 0:00:11]} Kf7 {[%emt 0:00:51]} 54. Rg5 {[%emt 0:00:04]} Rb8 {[%emt 0:00:18]} 55. h3 {[%emt 0:00:54]} Kf6 {[%emt 0:00:52]} 56. Kxh5 {[%emt 0:00:14]} Rh8+ {[%emt 0:00:22]} 57. Kg4 {[%emt 0:00:01]} Rb8 {[%emt 0:00:08]} 58. Rf5+ {[%emt 0:00:36]} Kg6 {[%emt 0:00:11]} 59. h4 {[%emt 0:00:03]} Rb4+ {[%emt 0:00:56]} 60. Rf4 {[%emt 0:00:01]} Rb6 {[%emt 0:00:23]} 61. Rc4 {[%emt 0:00:20]} Ra6 {[%emt 0:00:30]} 62. h5+ {[%emt 0:00:14]} Kh6 {[%emt 0:00:04]} 63. Kh4 {[%emt 0:00:04]} Rb6 {[%emt 0:01:35]} 64. g4 {[%emt 0:00:11]} Rb5 {[%emt 0:00:19]} 65. g5+ {[%emt 0:00:40]} Kg7 {[%emt 0:00:16]} 66. Rc7+ {[%emt 0:00:03]} Kg8 {[%emt 0:00:05]} 67. h6 {[%emt 0:00:11]} Rb6 {[%emt 0:00:31]} 68. Kh5 {[%emt 0:00:07]} Rb5 {[%emt 0:01:19]} 69. Rc6 {[%emt 0:02:50]} Kh7 {[%emt 0:00:40]} 70. Rf6 {[%emt 0:00:20]} Rc5 {[%emt 0:00:51]} 71. Re6 {[%emt 0:00:57]} Rb5 {[%emt 0:00:21]} 72. Re7+ {[%emt 0:00:20]} Kg8 {[%emt 0:00:16]} 73. Kg6 {[%emt 0:00:09]} Rb6+ {[%emt 0:00:38]} 74. Kf5 {[%emt 0:00:06]} Rb5+ {[%emt 0:00:52]} 75. Kf6 {[%emt 0:00:13]} Rb6+ {[%emt 0:00:32]} 76. Re6 {[%emt 0:00:06]} Rb8 {[%emt 0:00:13]} 77. g6 {[%emt 0:01:56]} Ra8 {[%emt 0:00:24]} 78. g7 {[%emt 0:01:56]} Kh7 {[%emt 0:00:20]} 79. Kf7 {[%emt 0:00:07]} Rg8 {[%emt 0:01:02]} 80. Re8 {[%emt 0:00:39]} 1-0

[Event "WYCC 2018 O14"]
[Site "Halkidiki"]
[Date "2018.10.23"]
[Round "5"]
[White "Vettese, Nicholas"]
[Black "Bassini, Emile"]
[Result "1-0"]
[ECO "B90"]
[WhiteElo "2338"]
[BlackElo "2002"]
[Annotator "NA"]
[PlyCount "103"]
[EventDate "2018.10.20"]
[EventType "swiss"]
[EventCountry "GRE"]
[SourceTitle "playchess.com"]
[Source "ChessBase"]
[SourceQuality "1"]
[TimeControl "40/5400+30:1800+30"]

1. e4 {[%emt 0:00:00] Yermolinsky,A} c5 {[%emt 0:00:00]} 2. Nf3 {[%emt 0:00:00]} d6 {[%emt 0:00:00]} 3. d4 {[%emt 0:00:02]} cxd4 {[%emt 0:00:00]} 4. Nxd4 {[%emt 0:00:10]} Nf6 {[%emt 0:00:00]} 5. Nc3 {[%emt 0:00:11]} a6 {[%emt 0:00:00]} 6. Nb3 {[%emt 0:02:08]} Nc6 {[%emt 0:00:15]} 7. Be3 {[%emt 0:00:35] B56: Sizilianisch (Abweichung von Sozin- und Richter/Rauser-Variante)} e6 {[%emt 0:00:07]} 8. g4 {[%emt 0:00:58]} h6 {[%emt 0:00:22]} 9. a3 $146 {[%emt 0:11:59]} ({Vorgänger:} 9. h4 b5 10. Bg2 Ne5 11. g5 Nfd7 12. f4 Nc4 13. Qe2 Nxb2 14. e5 Rb8 {1-0 (39) Vitiugov,N (2724)-Artemiev,V (2655) Moscow 2017 CBM 177 [Yermolinsky,A]}) 9... Ne5 {[%emt 0:11:10]} 10. Rg1 {[%emt 0:03:09]} g5 {[%emt 0:06:24]} 11. h4 {[%emt 0:07:18]} Nfd7 {[%emt 0:08:26]} 12. Qe2 {[%emt 0:04:26]} Qf6 {[%emt 0:05:35]} 13. O-O-O {[%emt 0:01:31]} Ng6 {[%emt 0:09:23]} 14. hxg5 {[%emt 0:00:55]} hxg5 {[%emt 0:00:05]} 15. e5 {[%emt 0:05:53]} Qxe5 {[%emt 0:03:09]} 16. Qd2 {[%emt 0:01:38]} Rh2 {[%emt 0:07:04]} 17. Nd4 {[%emt 0:04:09]} Nh4 {[%emt 0:13:09]} 18. Bxg5 {[%emt 0:07:09]} Rxf2 {[%emt 0:00:26]} 19. Qxf2 {[%emt 0:00:17]} Qxg5+ {[%emt 0:00:05]} 20. Kb1 {[%emt 0:00:16]} d5 {[%emt 0:01:23]} 21. Bd3 {[%emt 0:13:32]} Be7 {[%emt 0:09:09]} 22. Bb5 {[%emt 0:07:35]} axb5 {[%emt 0:02:21]} 23. Ncxb5 {[%emt 0:00:11]} Kd8 {[%emt 0:11:17]} 24. Qxf7 {[%emt 0:00:22]} Nf8 {[%emt 0:00:07]} 25. Qf2 {[%emt 0:06:41]} Ra6 {[%emt 0:00:27]} 26. Qg3 {[%emt 0:01:11]} e5 {[%emt 0:01:40]} 27. Qc3 {[%emt 0:03:29]} Bd6 {[%emt 0:02:56]} 28. Nxd6 {[%emt 0:01:37]} Rxd6 {[%emt 0:00:02]} 29. Nb5 {[%emt 0:02:57]} Rd7 {[%emt 0:01:18]} 30. Qa5+ {[%emt 0:01:02]} Ke7 {[%emt 0:00:48]} 31. Qb4+ {[%emt 0:00:18]} Ke8 {[%emt 0:00:13]} 32. Nd6+ {[%emt 0:00:28]} Rxd6 {[%emt 0:00:05]} 33. Qxd6 {[%emt 0:00:09]} Be6 {[%emt 0:00:04]} 34. Qb8+ $18 {[%emt 0:02:13]} Ke7 {[%emt 0:00:25]} 35. Qxb7+ {[%emt 0:00:19]} Nd7 {[%emt 0:00:11]} 36. a4 {[%emt 0:01:11]} Nf3 {[%emt 0:00:28]} 37. Rh1 {[%emt 0:01:28]} Nd2+ {[%emt 0:01:15]} 38. Ka2 {[%emt 0:02:52]} Qf4 {[%emt 0:02:21]} 39. b3 {[%emt 0:01:51]} Qe4 {[%emt 0:00:56]} 40. Rxd2 {[%emt 0:00:00]} Qxh1 {[%emt 0:00:00]} 41. a5 {[%emt 0:01:44]} e4 {[%emt 0:09:20]} 42. a6 {[%emt 0:06:29]} e3 {[%emt 0:01:43]} 43. Re2 {[%emt 0:00:22]} Qd1 {[%emt 0:00:34]} 44. Qb4+ {[%emt 0:00:13]} Ke8 {[%emt 0:02:08]} 45. a7 {[%emt 0:00:11]} Qxe2 {[%emt 0:00:02]} 46. a8=Q+ {[%emt 0:00:15]} Kf7 {[%emt 0:00:03]} 47. Qf4+ {[%emt 0:00:35]} Ke7 {[%emt 0:00:33]} 48. Qg5+ {[%emt 0:00:47]} Kd6 {[%emt 0:00:07]} 49. Qa3+ {[%emt 0:00:25]} Kc6 {[%emt 0:00:08]} 50. Qg6 {[%emt 0:03:43]} Qxg4 {[%emt 0:00:23]} 51. Qxg4 {[%emt 0:00:10]} Bxg4 {[%emt 0:00:04]} 52. Qa4+ {[%emt 0:00:07]} 1-0

[Event "WYCC 2018 O14"]
[Site "Halkidiki"]
[Date "2018.10.23"]
[Round "5"]
[White "Huang, Renjie"]
[Black "Fecker, Noah"]
[Result "1/2-1/2"]
[ECO "B44"]
[WhiteElo "2322"]
[BlackElo "2184"]
[Annotator "NA"]
[PlyCount "65"]
[EventDate "2018.10.20"]
[EventType "swiss"]
[EventCountry "GRE"]
[SourceTitle "playchess.com"]
[Source "ChessBase"]
[SourceQuality "1"]
[TimeControl "40/5400+30:1800+30"]

1. e4 {[%emt 0:00:00]} c5 {[%emt 0:00:00]} 2. Nf3 {[%emt 0:00:00]} e6 {[%emt 0:00:00]} 3. d4 {[%emt 0:00:00]} cxd4 {[%emt 0:00:00]} 4. Nxd4 {[%emt 0:00:00]} Nc6 {[%emt 0:00:00]} 5. g3 {[%emt 0:00:08]} a6 {[%emt 0:06:59]} 6. Bg2 {[%emt 0:00:10]} Qc7 {[%emt 0:00:24]} 7. O-O {[%emt 0:00:21]} Nf6 {[%emt 0:04:30]} 8. Nc3 {[%emt 0:00:46]} h5 {[%emt 0:02:01] B47: Sicilian: Taimanov: 5 Nc3 Qc7 6 f4, 6 g3 and 6 Be2} (8... Be7 9. Re1 O-O 10. Nxc6 dxc6 11. e5 Rd8 12. Qe2 Nd5 {½-½ (12) Mamedov,R (2708)-Andreikin,D (2702) Minsk 2018}) 9. Bg5 {[%emt 0:01:03]} Bc5 {[%emt 0:02:10]} 10. Nxc6 {[%emt 0:10:01]} dxc6 {[%emt 0:00:44]} 11. e5 $146 {[%emt 0:12:22]} ({Predecessor:} 11. Na4 Ba7 12. c4 b5 13. cxb5 axb5 14. Nc3 b4 15. e5 bxc3 16. exf6 {1-0 (49) Kummle,T (2126)-Budisin,S (2148) Germany 2006}) 11... Qxe5 {[%emt 0:10:25]} 12. Ne4 {[%emt 0:00:53]} Qd4 {[%emt 0:19:01]} 13. Qe2 {[%emt 0:06:51]} Nxe4 {[%emt 0:03:05]} 14. Rad1 {[%emt 0:00:53]} Nxg5 {[%emt 0:02:51]} 15. Rxd4 {[%emt 0:00:25]} Bxd4 {[%emt 0:00:04]} 16. h4 {[%emt 0:00:06]} Nh7 {[%emt 0:03:03]} 17. Qc4 {[%emt 0:00:07]} Bf6 {[%emt 0:09:06]} 18. Bxc6+ {[%emt 0:00:10]} Kf8 {[%emt 0:00:10]} 19. Bxb7 {[%emt 0:04:32]} Bxb7 {[%emt 0:00:33]} 20. Qb4+ {[%emt 0:00:02]} Be7 {[%emt 0:01:24]} 21. Qxb7 {[%emt 0:00:08]} Rd8 {[%emt 0:00:06]} 22. c4 {[%emt 0:00:55]} g5 {[%emt 0:01:34]} 23. b4 {[%emt 0:03:12]} gxh4 {[%emt 0:08:53]} 24. c5 {[%emt 0:00:57] [#]} Bg5 $11 {[%emt 0:00:33]} (24... f5 $1 $19 25. a4 (25. Qxa6 $2 Kf7 $17) 25... Kf7 26. Qxa6 Nf6) 25. c6 {[%emt 0:02:53]} Kg7 {[%emt 0:00:13]} 26. Qxa6 {[%emt 0:12:24]} Nf6 {[%emt 0:03:55]} 27. b5 {[%emt 0:01:02]} Ra8 {[%emt 0:01:15]} 28. Qb6 {[%emt 0:02:32]} Nd5 {[%emt 0:00:23]} 29. Qd4+ {[%emt 0:01:28]} Bf6 {[%emt 0:00:27]} 30. Qc5 {[%emt 0:00:11]} Bd8 {[%emt 0:02:00]} 31. Qd4+ {[%emt 0:01:39]} Bf6 {[%emt 0:00:05]} 32. Qc5 {[%emt 0:00:45]} Bd8 {[%emt 0:00:06]} 33. Qd4+ {[%emt 0:02:42]} 1/2-1/2

[Event "WYCC 2018 O14"]
[Site "Halkidiki"]
[Date "2018.10.23"]
[Round "5"]
[White "Dardha, Daniel"]
[Black "Vitenberg, Noam Aviv"]
[Result "1/2-1/2"]
[ECO "E53"]
[WhiteElo "2316"]
[BlackElo "2175"]
[Annotator "NA"]
[PlyCount "96"]
[EventDate "2018.10.20"]
[EventType "swiss"]
[EventCountry "GRE"]
[SourceTitle "playchess.com"]
[Source "ChessBase"]
[SourceQuality "1"]
[TimeControl "40/5400+30:1800+30"]

1. d4 {[%emt 0:00:00]} Nf6 {[%emt 0:00:00]} 2. c4 {[%emt 0:00:00]} e6 {[%emt 0:00:00]} 3. Nc3 {[%emt 0:00:00]} Bb4 {[%emt 0:00:00]} 4. e3 {[%emt 0:00:00]} O-O {[%emt 0:00:00]} 5. Bd3 {[%emt 0:00:00]} d5 {[%emt 0:00:05]} 6. Nf3 {[%emt 0:00:00]} c5 {[%emt 0:00:07]} 7. O-O {[%emt 0:00:02]} cxd4 {[%emt 0:00:07]} 8. exd4 {[%emt 0:00:04]} dxc4 {[%emt 0:00:06]} 9. Bxc4 {[%emt 0:00:04]} b6 {[%emt 0:00:09]} 10. Bg5 {[%emt 0:00:05]} Bb7 {[%emt 0:00:07]} 11. Qe2 {[%emt 0:00:03]} Nbd7 {[%emt 0:01:05]} 12. Ne5 {[%emt 0:01:05]} Rc8 {[%emt 0:13:24]} 13. Rfd1 {[%emt 0:40:48]} Re8 {[%emt 0:23:17]} 14. Bb5 {[%emt 0:02:27]} h6 {[%emt 0:17:22]} 15. Bxd7 {[%emt 0:06:12]} hxg5 {[%emt 0:00:30]} 16. Bxc8 {[%emt 0:00:05]} Qxc8 {[%emt 0:00:19]} 17. Rac1 {[%emt 0:00:45]} Qa8 {[%emt 0:02:54]} 18. f3 {[%emt 0:05:47]} a6 {[%emt 0:08:08]} 19. Rc2 {[%emt 0:07:51]} Rd8 {[%emt 0:04:33]} 20. a3 {[%emt 0:03:25]} Bd6 {[%emt 0:05:19]} 21. Qe3 {[%emt 0:01:55]} Nd5 {[%emt 0:02:33]} 22. Nxd5 {[%emt 0:00:50]} Bxd5 {[%emt 0:00:41]} 23. Rdc1 {[%emt 0:08:07]} f6 {[%emt 0:02:54]} 24. Nd3 {[%emt 0:00:28]} Kf7 {[%emt 0:01:15]} 25. h3 {[%emt 0:03:18]} Qb8 {[%emt 0:02:45]} 26. Qe2 {[%emt 0:03:17]} a5 {[%emt 0:01:55]} 27. Rc3 {[%emt 0:01:07]} Bh2+ {[%emt 0:02:16]} 28. Kf1 {[%emt 0:04:09]} Bb7 {[%emt 0:00:50]} 29. f4 {[%emt 0:07:31]} Bxf4 {[%emt 0:01:48]} 30. Nxf4 {[%emt 0:02:53]} Qxf4+ {[%emt 0:00:15]} 31. Kg1 {[%emt 0:01:36]} Qxd4+ {[%emt 0:00:54]} 32. Kh1 {[%emt 0:00:12]} Qd5 {[%emt 0:01:32]} 33. Rc7+ {[%emt 0:01:35]} Kg6 {[%emt 0:05:16]} 34. Qc2+ {[%emt 0:00:32]} f5 {[%emt 0:00:47]} 35. Re1 {[%emt 0:00:20]} Rh8 {[%emt 0:02:02]} 36. Kg1 {[%emt 0:00:53]} Qd4+ {[%emt 0:01:12]} 37. Qf2 {[%emt 0:00:28]} Qxf2+ {[%emt 0:00:29]} 38. Kxf2 {[%emt 0:00:01]} Bd5 {[%emt 0:00:18]} 39. Rec1 {[%emt 0:00:43]} Rh4 {[%emt 0:00:30]} 40. Rd7 {[%emt 0:00:00]} Rf4+ {[%emt 0:00:00]} 41. Kg1 {[%emt 0:04:46]} Rd4 {[%emt 0:11:20]} 42. Rcc7 {[%emt 0:01:09]} Rd1+ {[%emt 0:02:41]} 43. Kh2 {[%emt 0:00:08]} Rd2 {[%emt 0:06:54]} 44. Rxg7+ {[%emt 0:00:30]} Kh6 {[%emt 0:00:17]} 45. Rh7+ {[%emt 0:00:06]} Kg6 {[%emt 0:00:07]} 46. Rhg7+ {[%emt 0:00:17]} Kh6 {[%emt 0:00:08]} 47. Rh7+ {[%emt 0:00:04]} Kg6 {[%emt 0:00:11]} 48. Rhg7+ {[%emt 0:00:15]} Kh6 {[%emt 0:00:07]} 1/2-1/2

[Event "WYCC 2018 O14"]
[Site "Halkidiki"]
[Date "2018.10.23"]
[Round "5"]
[White "Gharibyan, Mamikon"]
[Black "Ngo, Duc Tri"]
[Result "1/2-1/2"]
[ECO "D06"]
[WhiteElo "2314"]
[BlackElo "1883"]
[Annotator "NA"]
[PlyCount "92"]
[EventDate "2018.10.20"]
[EventType "swiss"]
[EventCountry "GRE"]
[SourceTitle "playchess.com"]
[Source "ChessBase"]
[SourceQuality "1"]
[TimeControl "40/5400+30:1800+30"]

1. d4 {[%emt 0:00:00]} d5 {[%emt 0:00:00]} 2. c4 {[%emt 0:00:00]} Bf5 {[%emt 0:00:10]} 3. Nc3 {[%emt 0:01:16]} e6 {[%emt 0:00:35]} 4. Nf3 {[%emt 0:01:34]} c6 {[%emt 0:01:17]} 5. e3 {[%emt 0:06:54]} Nd7 {[%emt 0:00:05]} 6. Bd3 {[%emt 0:01:10] LiveBook: 95 Games} dxc4 {[%emt 0:03:58] D11: Slav Defence: 3 Nf3 sidelines and 3...Nf6 4 e3 Bg4} (6... Bg6 7. Bxg6 hxg6 8. Qb3 Qb6 9. e4 dxe4 10. Nxe4 Ngf6 11. Nc3 Qb4 12. Bd2 a6 13. h3 Qxb3 14. axb3 {½-½ (39) Vajda,L (2588)-Nepomniachtchi,I (2733) Antalya 2017}) 7. Bxc4 {[%emt 0:03:15]} Ngf6 {[%emt 0:04:26]} 8. O-O {[%emt 0:00:41]} Nb6 {[%emt 0:09:55]} 9. Bd3 {[%emt 0:04:02]} Bg6 {[%emt 0:00:06]} 10. e4 $146 {[%emt 0:02:25]} ({Predecessor:} 10. Ne5 Bd6 11. f4 {1-0 (45) Nieberle,C (1692)-Zuerner,B (1241) Bad Koenigshofen 2010}) 10... Be7 {[%emt 0:00:12]} 11. Be3 {[%emt 0:04:21]} Bh5 {[%emt 0:01:14]} 12. h3 {[%emt 0:06:07]} Nbd7 {[%emt 0:08:27]} 13. Qe2 {[%emt 0:09:28]} Bxf3 {[%emt 0:03:57]} 14. Qxf3 {[%emt 0:00:43]} O-O {[%emt 0:02:12]} 15. Rad1 {[%emt 0:09:56]} Qa5 {[%emt 0:06:48]} 16. Rfe1 {[%emt 0:02:27]} Rad8 {[%emt 0:12:16]} 17. e5 {[%emt 0:09:28]} Nd5 {[%emt 0:04:40]} 18. Bc1 {[%emt 0:07:27]} Nxc3 {[%emt 0:05:14]} 19. bxc3 {[%emt 0:00:08]} Qxa2 {[%emt 0:01:19]} 20. Qg4 {[%emt 0:01:59]} Kh8 {[%emt 0:15:08]} 21. Re3 {[%emt 0:03:03]} g6 {[%emt 0:05:11]} 22. h4 {[%emt 0:06:33]} f5 {[%emt 0:00:09]} 23. exf6 {[%emt 0:00:25]} Rxf6 {[%emt 0:00:08]} 24. Re2 {[%emt 0:01:06]} Qb3 {[%emt 0:00:07]} 25. Bc2 {[%emt 0:02:52]} Qc4 {[%emt 0:06:03]} 26. h5 {[%emt 0:03:12]} Nf8 {[%emt 0:00:16]} 27. Bg5 {[%emt 0:01:37]} Rf7 {[%emt 0:00:42]} 28. hxg6 {[%emt 0:00:34]} hxg6 {[%emt 0:00:58]} 29. Re3 {[%emt 0:06:43]} Bxg5 {[%emt 0:06:26]} 30. Qxg5 {[%emt 0:00:05]} Qd5 {[%emt 0:00:57]} 31. Re5 {[%emt 0:00:30]} Qd6 {[%emt 0:00:22]} 32. Bxg6 {[%emt 0:02:37]} Rg7 {[%emt 0:00:17]} 33. Qh6+ {[%emt 0:00:33]} Kg8 {[%emt 0:00:04]} 34. Bc2 {[%emt 0:00:38]} Qe7 {[%emt 0:00:32]} 35. Rd3 {[%emt 0:00:26]} Rg6 {[%emt 0:00:50]} 36. Rg3 {[%emt 0:00:18]} Rxg3 {[%emt 0:00:04]} 37. fxg3 {[%emt 0:00:04]} Rd5 {[%emt 0:00:03]} 38. Qh5 {[%emt 0:02:34]} Qg7 {[%emt 0:01:34]} 39. Rxd5 {[%emt 0:01:09]} exd5 {[%emt 0:00:09]} 40. g4 {[%emt 0:00:00]} Qe7 {[%emt 0:00:00]} 41. Kf2 $11 {[%emt 0:04:13]} a5 {[%emt 0:01:18]} 42. Qh6 {[%emt 0:02:41]} Qf7+ {[%emt 0:03:07]} 43. Bf5 {[%emt 0:01:41]} Qe7 {[%emt 0:02:41]} 44. Bc2 {[%emt 0:02:56]} Qf7+ {[%emt 0:00:03]} 45. Kg3 {[%emt 0:03:59]} Qc7+ {[%emt 0:01:27]} 46. Kf3 {[%emt 0:02:05]} Qf7+ {[%emt 0:01:40]} 1/2-1/2